[Event "1er Festival international de Cassis 2022"]
[Site "Cassis"]
[Date "2022.05.27"]
[Round "4.6"]
[White "Hamm, Fabien"]
[Black "Kunin, Vitaly"]
[Result "0-1"]
[TimeControl "1 h 30 + 30 s"]
[WhiteElo "2020"]
[BlackElo "2539"]

1. e4 {[%clk 01:30:29]} {[%emt 00:00:30]} c5 {[%clk 01:26:04]} {[%emt
00:04:46]} 2. Nf3 {[%clk 01:30:38]} {[%emt 00:00:31]} Nc6 {[%clk 01:26:23]}
{[%emt 00:00:11]} 3. Bb5 {[%clk 01:28:53]} {[%emt 00:02:15]} d6 {[%clk
01:26:42]} {[%emt 00:00:10]} 4. O-O {[%clk 01:28:33]} {[%emt 00:00:50]} Bd7
{[%clk 01:27:06]} {[%emt 00:00:07]} 5. Re1 {[%clk 01:23:22]} {[%emt 00:05:41]}
Nf6 {[%clk 01:26:25]} {[%emt 00:01:12]} 6. c3 {[%clk 01:18:16]} {[%emt
00:05:36]} a6 {[%clk 01:26:47]} {[%emt 00:00:08]} 7. Bf1 {[%clk 01:17:54]}
{[%emt 00:00:52]} Bg4 {[%clk 01:27:09]} {[%emt 00:00:07]} 8. h3 {[%clk
01:09:44]} {[%emt 00:08:39]} Bxf3 {[%clk 01:26:44]} {[%emt 00:00:56]} 9. Qxf3
{[%clk 01:05:21]} {[%emt 00:04:52]} g6 {[%clk 01:27:05]} {[%emt 00:00:09]} 10.
d3 {[%clk 01:02:56]} {[%emt 00:02:56]} Bg7 {[%clk 01:27:27]} {[%emt 00:00:08]}
11. Bg5 {[%clk 01:01:06]} {[%emt 00:02:20]} O-O {[%clk 01:27:19]} {[%emt
00:00:38]} 12. Na3 {[%clk 00:54:01]} {[%emt 00:07:36]} b5 {[%clk 01:19:41]}
{[%emt 00:08:08]} 13. Rad1 {[%clk 00:48:30]} {[%emt 00:06:00]} b4 {[%clk
01:13:02]} {[%emt 00:07:11]} 14. Nc2 {[%clk 00:32:52]} {[%emt 00:16:07]} bxc3
{[%clk 01:12:43]} {[%emt 00:00:49]} 15. bxc3 {[%clk 00:32:58]} {[%emt
00:00:24]} Qa5 {[%clk 01:12:46]} {[%emt 00:00:27]} 16. d4 {[%clk 00:29:34]}
{[%emt 00:03:55]} cxd4 {[%clk 01:12:36]} {[%emt 00:00:39]} 17. Bxf6 {[%clk
00:27:14]} {[%emt 00:02:50]} Bxf6 {[%clk 01:12:58]} {[%emt 00:00:08]} 18. cxd4
{[%clk 00:22:48]} {[%emt 00:04:56]} Nxd4 {[%clk 01:13:17]} {[%emt 00:00:11]} 19.
Nxd4 {[%clk 00:22:13]} {[%emt 00:01:06]} Bxd4 {[%clk 01:13:38]} {[%emt
00:00:09]} 20. Bc4 {[%clk 00:20:13]} {[%emt 00:02:30]} Rac8 {[%clk 01:13:48]}
{[%emt 00:00:20]} 21. Bb3 {[%clk 00:19:39]} {[%emt 00:01:05]} Kg7 {[%clk
01:11:43]} {[%emt 00:02:35]} 22. Qe2 {[%clk 00:17:40]} {[%emt 00:02:28]} Bc3
{[%clk 01:10:52]} {[%emt 00:01:20]} 23. Rd5 {[%clk 00:14:41]} {[%emt 00:03:30]}
Qb6 {[%clk 01:10:55]} {[%emt 00:00:27]} 24. Red1 {[%clk 00:14:21]} {[%emt
00:00:50]} Be5 {[%clk 01:10:54]} {[%emt 00:00:32]} 25. R5d3 {[%clk 00:07:50]}
{[%emt 00:07:01]} Rc3 {[%clk 01:07:14]} {[%emt 00:04:10]} 26. Rxc3 {[%clk
00:05:04]} {[%emt 00:03:17]} Bxc3 {[%clk 01:07:36]} {[%emt 00:00:08]} 27. Rd3
{[%clk 00:04:52]} {[%emt 00:00:41]} Bf6 {[%clk 01:06:59]} {[%emt 00:01:06]} 28.
Bd5 {[%clk 00:04:40]} {[%emt 00:00:42]} Rc8 {[%clk 01:06:54]} {[%emt 00:00:36]}
29. g3 {[%clk 00:02:07]} {[%emt 00:03:03]} Rc1+ {[%clk 01:04:48]} {[%emt
00:02:36]} 30. Rd1 {[%clk 00:02:14]} {[%emt 00:00:24]} Qb2 {[%clk 01:04:36]}
{[%emt 00:00:41]} 31. Qf1 {[%clk 00:01:32]} {[%emt 00:01:12]} Rc2 {[%clk
01:03:42]} {[%emt 00:01:24]} 32. Bb3 {[%clk 00:01:26]} {[%emt 00:00:38]} Re2
{[%clk 01:03:22]} {[%emt 00:00:49]} 33. Bd5 {[%clk 00:00:42]} {[%emt 00:01:13]}
e6 {[%clk 01:01:37]} {[%emt 00:02:16]} 34. Bb7 {[%clk 00:00:40]} {[%emt
00:00:31]} a5 {[%clk 00:59:28]} {[%emt 00:02:40]} 35. Ba6 {[%clk 00:00:39]}
{[%emt 00:00:32]} Rxe4 {[%clk 00:59:28]} {[%emt 00:00:30]} 36. Rxd6 {[%clk
00:00:45]} {[%emt 00:00:24]} Qxa2 {[%clk 00:59:19]} {[%emt 00:00:39]} 37. Rd7
{[%clk 00:00:41]} {[%emt 00:00:32]} Rd4 {[%clk 00:59:08]} {[%emt 00:00:42]} 38.
Qb5 {[%clk 00:00:34]} {[%emt 00:00:38]} Rxd7 {[%clk 00:58:53]} {[%emt
00:00:45]} 39. Qxd7 {[%clk 00:01:00]} {[%emt 00:00:04]} a4 {[%clk 00:58:51]}
{[%emt 00:00:33]} 40. Qd1 {[%clk 00:00:32]} {[%emt 00:00:58]} a3 {[%clk
00:59:01]} {[%emt 00:00:19]} 41. Qc1 {[%clk 00:00:33]} {[%emt 00:00:29]} Bd4
{[%clk 00:59:17]} {[%emt 00:00:14]} 0-1

[Event "1er Festival international de Cassis 2022"]
[Site "Cassis"]
[Date "2022.05.27"]
[Round "4.7"]
[White "Lemiere, Frederic"]
[Black "Movsziszian, Karen"]
[Result "0-1"]
[TimeControl "1 h 30 + 30 s"]
[WhiteElo "1925"]
[BlackElo "2467"]

1. d4 {[%clk 01:30:58]} g6 {[%clk 01:30:55]} {[%emt 00:00:07]} 2. Nf3 {[%clk
01:31:21]} {[%emt 00:00:07]} Bg7 {[%clk 01:31:23]} {[%emt 00:00:02]} 3. e4
{[%clk 01:31:16]} {[%emt 00:00:34]} d6 {[%clk 01:31:51]} {[%emt 00:00:02]} 4.
c3 {[%clk 01:31:25]} {[%emt 00:00:21]} Nf6 {[%clk 01:30:17]} {[%emt 00:02:05]}
5. Bb5+ {[%clk 01:30:56]} {[%emt 00:00:59]} c6 {[%clk 01:30:27]} {[%emt
00:00:20]} 6. Bd3 {[%clk 01:31:14]} {[%emt 00:00:11]} O-O {[%clk 01:30:54]}
{[%emt 00:00:03]} 7. O-O {[%clk 01:31:33]} {[%emt 00:00:11]} c5 {[%clk
01:29:10]} {[%emt 00:02:15]} 8. h3 {[%clk 01:30:26]} {[%emt 00:01:37]} Nc6
{[%clk 01:29:34]} {[%emt 00:00:06]} 9. Re1 {[%clk 01:26:45]} {[%emt 00:04:10]}
Qc7 {[%clk 01:29:00]} {[%emt 00:01:02]} 10. d5 {[%clk 01:19:56]} {[%emt
00:07:20]} Na5 {[%clk 01:29:08]} {[%emt 00:00:22]} 11. Nbd2 {[%clk 01:17:42]}
{[%emt 00:02:44]} b6 {[%clk 01:28:31]} {[%emt 00:01:07]} 12. Nf1 {[%clk
01:17:04]} {[%emt 00:01:08]} e5 {[%clk 01:27:32]} {[%emt 00:01:30]} 13. Ng3
{[%clk 01:14:21]} {[%emt 00:03:12]} c4 {[%clk 01:24:40]} {[%emt 00:03:23]} 14.
Bc2 {[%clk 01:14:29]} {[%emt 00:00:22]} Bd7 {[%clk 01:24:39]} {[%emt 00:00:31]}
15. Bg5 {[%clk 01:14:08]} {[%emt 00:00:50]} Nb7 {[%clk 01:24:37]} {[%emt
00:00:32]} 16. Qd2 {[%clk 01:07:19]} {[%emt 00:07:21]} b5 {[%clk 01:24:54]}
{[%emt 00:00:12]} 17. Nh4 {[%clk 01:02:07]} {[%emt 00:05:41]} Kh8 {[%clk
01:20:13]} {[%emt 00:05:11]} 18. Bh6 {[%clk 00:40:22]} {[%emt 00:22:16]} Bxh6
{[%clk 01:20:28]} {[%emt 00:00:15]} 19. Qxh6 {[%clk 00:40:42]} {[%emt
00:00:10]} Ng8 {[%clk 01:20:55]} {[%emt 00:00:02]} 20. Qd2 {[%clk 00:36:58]}
{[%emt 00:04:14]} f6 {[%clk 01:20:25]} {[%emt 00:01:01]} 21. Rf1 {[%clk
00:36:17]} {[%emt 00:01:10]} Nc5 {[%clk 01:20:16]} {[%emt 00:00:39]} 22. b4
{[%clk 00:18:54]} {[%emt 00:17:52]} cxb3 {[%clk 01:20:40]} {[%emt 00:00:06]} 23.
axb3 {[%clk 00:19:18]} {[%emt 00:00:06]} a5 {[%clk 01:21:07]} {[%emt 00:00:03]}
24. b4 {[%clk 00:16:34]} {[%emt 00:03:15]} Na4 {[%clk 01:21:27]} {[%emt
00:00:10]} 25. Bxa4 {[%clk 00:10:31]} {[%emt 00:06:33]} bxa4 {[%clk 01:21:54]}
{[%emt 00:00:02]} 26. Rfc1 {[%clk 00:10:29]} {[%emt 00:00:32]} Rfc8 {[%clk
01:19:27]} {[%emt 00:02:57]} 27. Nf3 {[%clk 00:09:59]} {[%emt 00:01:01]} Qb6
{[%clk 01:17:50]} {[%emt 00:02:06]} 28. Ne1 {[%clk 00:07:16]} {[%emt 00:03:14]}
axb4 {[%clk 01:12:52]} {[%emt 00:05:27]} 29. cxb4 {[%clk 00:07:40]} {[%emt
00:00:07]} Kg7 {[%clk 01:13:15]} {[%emt 00:00:07]} 30. Nc2 {[%clk 00:07:02]}
{[%emt 00:01:07]} Rc4 {[%clk 01:11:57]} {[%emt 00:01:45]} 31. Rcb1 {[%clk
00:03:26]} {[%emt 00:04:10]} Ne7 {[%clk 01:07:02]} {[%emt 00:05:24]} 32. Na3
{[%clk 00:02:14]} {[%emt 00:01:43]} Rd4 {[%clk 01:04:08]} {[%emt 00:03:24]} 33.
Qe3 {[%clk 00:02:20]} {[%emt 00:00:23]} Rb8 {[%clk 01:03:41]} {[%emt 00:00:57]}
34. b5 {[%clk 00:02:16]} {[%emt 00:00:34]} f5 {[%clk 01:02:11]} {[%emt
00:02:01]} 35. exf5 {[%clk 00:01:37]} {[%emt 00:01:10]} Bxf5 {[%clk 01:00:27]}
{[%emt 00:02:13]} 36. Qg5 {[%clk 00:00:58]} {[%emt 00:01:08]} Kf7 {[%clk
01:00:56]} {[%emt 00:00:03]} 37. Nxf5 {[%clk 00:00:53]} {[%emt 00:00:35]} Nxf5
{[%clk 01:01:21]} {[%emt 00:00:03]} 38. Rc1 {[%clk 00:00:38]} {[%emt 00:00:46]}
Rf4 {[%clk 01:01:44]} {[%emt 00:00:07]} 39. g3 {[%clk 00:00:00]} {[%emt
00:00:38]} 0-1

[Event "1er Festival international de Cassis 2022"]
[Site "Cassis"]
[Date "2022.05.27"]
[Round "4.8"]
[White "Petrosyan, Armen"]
[Black "Bremond, Pascal"]
[Result "1-0"]
[TimeControl "1 h 30 + 30 s"]
[WhiteElo "2396"]
[BlackElo "1915"]

1. e4 {[%clk 01:30:55]} {[%emt 00:00:05]} c5 {[%clk 01:29:54]} {[%emt
00:01:06]} 2. Nf3 {[%clk 01:31:14]} {[%emt 00:00:11]} Nc6 {[%clk 01:29:57]}
{[%emt 00:00:26]} 3. Bb5 {[%clk 01:31:36]} {[%emt 00:00:08]} e6 {[%clk
01:30:15]} {[%emt 00:00:12]} 4. O-O {[%clk 01:31:42]} {[%emt 00:00:24]} Nge7
{[%clk 01:29:18]} {[%emt 00:01:26]} 5. Re1 {[%clk 01:31:50]} {[%emt 00:00:23]}
a6 {[%clk 01:29:18]} {[%emt 00:00:30]} 6. Bf1 {[%clk 01:32:10]} {[%emt
00:00:11]} d5 {[%clk 01:28:39]} {[%emt 00:01:09]} 7. exd5 {[%clk 01:32:32]}
{[%emt 00:00:09]} Nxd5 {[%clk 01:28:59]} {[%emt 00:00:09]} 8. d4 {[%clk
01:32:52]} {[%emt 00:00:10]} Nf6 {[%clk 01:28:27]} {[%emt 00:01:02]} 9. Be3
{[%clk 01:32:28]} {[%emt 00:00:54]} cxd4 {[%clk 01:24:21]} {[%emt 00:04:36]} 10.
Nxd4 {[%clk 01:32:49]} {[%emt 00:00:09]} Nxd4 {[%clk 01:24:16]} {[%emt
00:00:36]} 11. Qxd4 {[%clk 01:31:57]} {[%emt 00:01:21]} Qxd4 {[%clk 01:24:24]}
{[%emt 00:00:22]} 12. Bxd4 {[%clk 01:32:23]} {[%emt 00:00:05]} Be7 {[%clk
01:22:43]} {[%emt 00:02:10]} 13. c4 {[%clk 01:26:52]} {[%emt 00:06:02]} O-O
{[%clk 01:22:21]} {[%emt 00:00:52]} 14. Nc3 {[%clk 01:27:17]} {[%emt 00:00:05]}
Bd7 {[%clk 01:19:38]} {[%emt 00:03:12]} 15. a3 {[%clk 01:25:43]} {[%emt
00:02:05]} a5 {[%clk 01:12:58]} {[%emt 00:07:09]} 16. Nd5 {[%clk 01:09:45]}
{[%emt 00:16:28]} Nxd5 {[%clk 00:58:36]} {[%emt 00:14:52]} 17. cxd5 {[%clk
01:10:01]} {[%emt 00:00:15]} Rac8 {[%clk 00:49:07]} {[%emt 00:09:59]} 18. g3
{[%clk 01:07:39]} {[%emt 00:02:52]} Bc5 {[%clk 00:42:45]} {[%emt 00:06:51]} 19.
Bc3 {[%clk 01:03:37]} {[%emt 00:04:33]} exd5 {[%clk 00:40:59]} {[%emt
00:02:16]} 20. Bxa5 {[%clk 01:04:04]} {[%emt 00:00:03]} Be6 {[%clk 00:36:07]}
{[%emt 00:05:21]} 21. Rad1 {[%clk 01:00:33]} {[%emt 00:04:01]} b6 {[%clk
00:34:48]} {[%emt 00:01:49]} 22. Bd2 {[%clk 00:59:57]} {[%emt 00:01:06]} Bd4
{[%clk 00:28:04]} {[%emt 00:07:14]} 23. Bb4 {[%clk 00:52:42]} {[%emt 00:07:46]}
Bc5 {[%clk 00:27:43]} {[%emt 00:00:50]} 24. Bxc5 {[%clk 00:34:49]} {[%emt
00:18:23]} bxc5 {[%clk 00:27:37]} {[%emt 00:00:36]} 25. Rd2 {[%clk 00:34:53]}
{[%emt 00:00:27]} Rc7 {[%clk 00:20:59]} {[%emt 00:07:06]} 26. Bg2 {[%clk
00:32:20]} {[%emt 00:03:05]} d4 {[%emt 00:05:09]} 27. b4 {[%clk 00:30:13]} cxb4
{[%clk 00:15:07]} {[%emt 00:04:19]} 28. axb4 {[%clk 00:30:40]} {[%emt
00:00:04]} Rc4 {[%clk 00:14:17]} {[%emt 00:01:19]} 29. b5 {[%clk 00:30:52]}
{[%emt 00:00:19]} Rb4 {[%clk 00:09:31]} {[%emt 00:05:15]} 30. Bc6 {[%clk
00:30:12]} {[%emt 00:01:10]} g6 {[%clk 00:09:10]} {[%emt 00:00:50]} 31. f3
{[%clk 00:19:04]} {[%emt 00:11:39]} Rd8 {[%clk 00:08:49]} {[%emt 00:00:51]} 32.
Re5 {[%clk 00:19:24]} {[%emt 00:00:11]} Kg7 {[%clk 00:07:19]} {[%emt 00:01:59]}
33. Kf2 {[%clk 00:17:52]} {[%emt 00:02:02]} h5 {[%clk 00:07:08]} {[%emt
00:00:41]} 34. Rc5 {[%clk 00:12:58]} {[%emt 00:05:25]} Bf5 {[%clk 00:05:32]}
{[%emt 00:02:06]} 35. Bd5 {[%clk 00:12:10]} {[%emt 00:01:18]} Rd7 {[%clk
00:05:37]} {[%emt 00:00:25]} 36. Rc4 {[%clk 00:10:30]} {[%emt 00:02:10]} Rxc4
{[%clk 00:05:30]} {[%emt 00:00:37]} 37. Bxc4 {[%clk 00:10:50]} {[%emt
00:00:10]} Kf6 {[%clk 00:05:21]} {[%emt 00:00:39]} 38. b6 {[%clk 00:10:25]}
{[%emt 00:00:55]} Be6 {[%clk 00:02:49]} {[%emt 00:03:01]} 39. Ba6 {[%clk
00:08:53]} {[%emt 00:02:02]} Ke5 {[%clk 00:02:14]} {[%emt 00:01:05]} 40. b7
{[%clk 00:08:04]} {[%emt 00:01:18]} Rd8 {[%clk 00:02:26]} {[%emt 00:00:18]} 41.
f4+ {[%clk 00:05:59]} {[%emt 00:02:35]} Kd5 {[%clk 00:00:41]} {[%emt 00:02:15]}
42. Rc2 {[%clk 00:06:22]} {[%emt 00:00:07]} Ke5 {[%emt 00:00:17]} 1-0

[Event "1er Festival international de Cassis 2022"]
[Site "Cassis"]
[Date "2022.05.28"]
[Round "5.1"]
[White "Sivuk, Vitaly"]
[Black "Flear, Glenn C"]
[Result "1-0"]
[TimeControl "1 h 30 + 30 s"]
[WhiteElo "2529"]
[BlackElo "2418"]

1. d4 {[%clk 01:30:53]} {[%emt 00:00:05]} d5 {[%clk 01:30:44]} {[%emt
00:00:16]} 2. c4 {[%clk 01:31:12]} {[%emt 00:00:11]} e6 {[%clk 01:30:52]}
{[%emt 00:00:23]} 3. Nf3 {[%clk 01:31:29]} {[%emt 00:00:12]} c6 {[%clk
01:30:47]} {[%emt 00:00:35]} 4. e3 {[%clk 01:31:47]} {[%emt 00:00:13]} Nf6
{[%clk 01:30:44]} {[%emt 00:00:34]} 5. Bd3 {[%clk 01:32:04]} {[%emt 00:00:12]}
Nbd7 {[%clk 01:28:48]} {[%emt 00:02:25]} 6. O-O {[%clk 01:32:18]} {[%emt
00:00:16]} Bd6 {[%clk 01:28:30]} {[%emt 00:00:49]} 7. Nc3 {[%clk 01:32:14]}
{[%emt 00:00:34]} O-O {[%clk 01:17:16]} {[%emt 00:11:44]} 8. e4 {[%clk
01:32:05]} {[%emt 00:00:38]} dxc4 {[%clk 01:15:22]} {[%emt 00:02:25]} 9. Bxc4
{[%clk 01:32:28]} {[%emt 00:00:06]} e5 {[%clk 01:15:46]} {[%emt 00:00:06]} 10.
Bg5 {[%clk 01:27:06]} {[%emt 00:05:51]} Qe7 {[%clk 01:14:15]} {[%emt 00:02:01]}
11. Bb3 {[%clk 01:06:00]} {[%emt 00:21:36]} Rd8 {[%clk 01:06:06]} {[%emt
00:08:39]} 12. Kh1 {[%clk 00:56:24]} {[%emt 00:10:06]} h6 {[%clk 01:00:56]}
{[%emt 00:05:42]} 13. Bh4 {[%clk 00:50:14]} {[%emt 00:06:39]} exd4 {[%clk
00:49:54]} {[%emt 00:11:32]} 14. Nxd4 {[%clk 00:50:30]} {[%emt 00:00:14]} Nf8
{[%clk 00:43:16]} {[%emt 00:07:08]} 15. f4 {[%clk 00:44:32]} {[%emt 00:06:27]}
Bc5 {[%emt 00:07:36]} 16. Nd5 {[%clk 00:35:39]} {[%emt 00:09:20]} cxd5 {[%clk
00:34:32]} {[%emt 00:02:10]} 17. e5 {[%clk 00:36:05]} {[%emt 00:00:05]} Ng6
{[%clk 00:29:38]} {[%emt 00:05:25]} 18. exf6 {[%clk 00:35:58]} {[%emt
00:00:36]} Qe4 {[%clk 00:24:38]} {[%emt 00:05:30]} 19. Nf3 {[%clk 00:34:28]}
{[%emt 00:02:00]} Bg4 {[%clk 00:20:51]} {[%emt 00:04:17]} 20. Bg3 {[%clk
00:28:38]} {[%emt 00:06:20]} gxf6 {[%clk 00:18:39]} {[%emt 00:02:43]} 21. Bc2
{[%clk 00:28:29]} {[%emt 00:00:38]} Qb4 {[%clk 00:16:34]} {[%emt 00:02:35]} 22.
h3 {[%clk 00:27:53]} {[%emt 00:01:06]} Bxf3 {[%clk 00:13:59]} {[%emt 00:03:06]}
23. Qxf3 {[%clk 00:28:05]} {[%emt 00:00:18]} Qxb2 {[%clk 00:11:24]} {[%emt
00:03:05]} 24. Bxg6 {[%clk 00:20:33]} {[%emt 00:08:02]} fxg6 {[%clk 00:11:50]}
{[%emt 00:00:05]} 25. Rab1 {[%clk 00:20:50]} {[%emt 00:00:12]} Qa3 {[%clk
00:06:26]} {[%emt 00:05:54]} 26. Qg4 {[%clk 00:20:14]} {[%emt 00:01:05]} Bf8
{[%clk 00:06:30]} {[%emt 00:00:26]} 27. Qxg6+ {[%clk 00:17:55]} {[%emt
00:02:49]} Bg7 {[%clk 00:06:49]} {[%emt 00:00:12]} 28. Rxb7 {[%clk 00:18:16]}
{[%emt 00:00:09]} Qf8 {[%clk 00:07:14]} {[%emt 00:00:05]} 29. f5 {[%clk
00:18:33]} {[%emt 00:00:12]} d4 {[%clk 00:06:09]} {[%emt 00:01:35]} 30. Bf4
{[%clk 00:18:35]} {[%emt 00:00:27]} 1-0

[Event "1er Festival international de Cassis 2022"]
[Site "Cassis"]
[Date "2022.05.28"]
[Round "5.2"]
[White "Degraeve, Remy"]
[Black "Philippe, Guillaume"]
[Result "0-1"]
[TimeControl "1 h 30 + 30 s"]
[WhiteElo "2383"]
[BlackElo "2405"]

1. e4 {[%clk 01:30:57]} {[%emt 00:00:01]} c5 {[%clk 01:30:49]} {[%emt
00:00:12]} 2. Nf3 {[%clk 01:31:23]} {[%emt 00:00:04]} e6 {[%clk 01:31:11]}
{[%emt 00:00:09]} 3. d4 {[%clk 01:31:49]} {[%emt 00:00:04]} cxd4 {[%clk
01:31:37]} {[%emt 00:00:04]} 4. Nxd4 {[%clk 01:32:15]} {[%emt 00:00:03]} a6
{[%clk 01:31:53]} {[%emt 00:00:15]} 5. c4 {[%clk 01:32:40]} {[%emt 00:00:05]}
Nf6 {[%clk 01:31:31]} {[%emt 00:00:52]} 6. Nc3 {[%clk 01:33:07]} {[%emt
00:00:03]} Qc7 {[%clk 01:30:46]} {[%emt 00:01:15]} 7. a3 {[%clk 01:33:29]}
{[%emt 00:00:08]} b6 {[%clk 01:31:06]} {[%emt 00:00:11]} 8. Be3 {[%clk
01:33:54]} {[%emt 00:00:04]} Bb7 {[%clk 01:31:31]} {[%emt 00:00:06]} 9. f3
{[%clk 01:34:20]} {[%emt 00:00:03]} d6 {[%clk 01:31:18]} {[%emt 00:00:43]} 10.
Be2 {[%clk 01:34:46]} {[%emt 00:00:04]} Be7 {[%clk 01:31:39]} {[%emt 00:00:09]}
11. Rc1 {[%clk 01:35:13]} {[%emt 00:00:03]} Nbd7 {[%clk 01:31:28]} {[%emt
00:00:41]} 12. g4 {[%clk 01:35:38]} {[%emt 00:00:05]} h6 {[%clk 01:30:34]}
{[%emt 00:01:25]} 13. Kd2 {[%clk 01:35:40]} {[%emt 00:00:28]} Rc8 {[%clk
01:24:35]} {[%emt 00:06:29]} 14. Kc2 {[%clk 01:35:32]} {[%emt 00:00:37]} Qb8
{[%clk 01:19:02]} {[%emt 00:06:03]} 15. Kb1 {[%clk 01:35:47]} {[%emt 00:00:15]}
Ne5 {[%clk 01:18:21]} {[%emt 00:01:11]} 16. Qf1 {[%clk 01:16:43]} {[%emt
00:19:33]} g5 {[%clk 01:10:04]} {[%emt 00:08:48]} 17. h4 {[%clk 01:10:48]}
{[%emt 00:06:25]} Rg8 {[%clk 01:10:29]} {[%emt 00:00:06]} 18. Ka1 {[%clk
01:07:54]} {[%emt 00:03:25]} Nfd7 {[%clk 01:07:24]} {[%emt 00:03:34]} 19. Ka2
{[%clk 01:02:59]} {[%emt 00:05:25]} Ng6 {[%clk 01:03:30]} {[%emt 00:04:24]} 20.
hxg5 {[%clk 00:49:19]} {[%emt 00:14:10]} hxg5 {[%clk 01:03:27]} {[%emt
00:00:34]} 21. Rh5 {[%clk 00:49:45]} {[%emt 00:00:04]} Nf4 {[%clk 01:00:47]}
{[%emt 00:03:10]} 22. Bxf4 {[%clk 00:50:12]} {[%emt 00:00:03]} gxf4 {[%clk
01:01:13]} {[%emt 00:00:04]} 23. g5 {[%clk 00:50:40]} {[%emt 00:00:02]} Rc5
{[%clk 00:56:21]} {[%emt 00:05:23]} 24. Qh3 {[%clk 00:48:27]} {[%emt 00:02:43]}
Rcxg5 {[%clk 00:54:13]} {[%emt 00:02:38]} 25. Rxg5 {[%clk 00:47:54]} {[%emt
00:01:02]} Rxg5 {[%clk 00:54:25]} {[%emt 00:00:18]} 26. Qh8+ {[%clk 00:42:26]}
{[%emt 00:05:58]} Nf8 {[%clk 00:52:39]} {[%emt 00:02:16]} 27. Bd1 {[%clk
00:39:35]} {[%emt 00:03:22]} Qc7 {[%clk 00:52:11]} {[%emt 00:00:58]} 28. Ba4+
{[%clk 00:39:43]} {[%emt 00:00:22]} Kd8 {[%clk 00:52:31]} {[%emt 00:00:08]} 29.
Nce2 {[%clk 00:39:58]} {[%emt 00:00:16]} Qc5 {[%clk 00:51:08]} {[%emt
00:01:53]} 30. Bc6 {[%clk 00:31:33]} {[%emt 00:08:56]} Kc7 {[%clk 00:48:09]}
{[%emt 00:03:28]} 31. Be8 {[%clk 00:27:46]} {[%emt 00:04:17]} Qe5 {[%clk
00:40:03]} {[%emt 00:08:36]} 32. Qh2 {[%clk 00:28:15]} {[%emt 00:00:02]} Rh5
{[%clk 00:37:09]} {[%emt 00:03:24]} 33. Qxf4 {[%clk 00:27:37]} {[%emt
00:01:08]} Qxf4 {[%clk 00:37:34]} {[%emt 00:00:05]} 34. Nxf4 {[%clk 00:28:04]}
{[%emt 00:00:03]} Rh7 {[%clk 00:37:59]} {[%emt 00:00:05]} 35. Rg1 {[%clk
00:22:45]} {[%emt 00:05:49]} e5 {[%clk 00:34:40]} {[%emt 00:03:51]} 36. Nf5
{[%clk 00:22:56]} {[%emt 00:00:19]} Kd8 {[%clk 00:35:02]} {[%emt 00:00:08]} 37.
Nh5 {[%clk 00:15:53]} {[%emt 00:07:33]} Kxe8 {[%clk 00:34:50]} {[%emt
00:00:43]} 38. Rg8 {[%clk 00:16:21]} {[%emt 00:00:01]} Kd8 {[%emt 00:09:54]} 39.
Nfg7 {[%clk 00:14:33]} Bc8 {[%clk 00:27:14]} {[%emt 00:00:59]} 40. Kb3 {[%clk
00:14:58]} {[%emt 00:00:05]} Be6 {[%clk 00:26:48]} {[%emt 00:00:56]} 41. Kc3
{[%clk 00:15:19]} {[%emt 00:00:10]} Kc7 {[%clk 00:25:44]} {[%emt 00:01:35]} 42.
b4 {[%clk 00:15:00]} {[%emt 00:00:49]} b5 {[%clk 00:25:12]} {[%emt 00:01:02]}
43. Nf6 {[%clk 00:11:50]} {[%emt 00:03:40]} Bxf6 {[%clk 00:23:01]} {[%emt
00:02:41]} 44. Ne8+ {[%clk 00:12:15]} {[%emt 00:00:05]} Kc6 {[%clk 00:23:17]}
{[%emt 00:00:13]} 45. cxb5+ {[%clk 00:12:39]} {[%emt 00:00:06]} axb5 {[%clk
00:23:42]} {[%emt 00:00:06]} 46. Nxf6 {[%clk 00:12:35]} {[%emt 00:00:33]} Rh3
{[%clk 00:24:06]} {[%emt 00:00:05]} 47. Nd5 {[%clk 00:12:58]} {[%emt 00:00:08]}
Rxf3+ {[%clk 00:24:21]} {[%emt 00:00:15]} 48. Kc2 {[%clk 00:13:26]} {[%emt
00:00:01]} Ng6 {[%clk 00:24:18]} {[%emt 00:00:33]} 0-1